Portfolio,Expense Area,Cost Centre,Expense Type,Account Code,Amount,Supplier Name,SupplierId,Pay Date,Transaction No.
Economy Development & Culture,Building Control Services,BCS00,Training fees,0011,215.00,Association Of Building Engineers,100019,06/09/2012,10172404
Economy Development & Culture,Building Regulation Fee Earning Account,BCS99,Training fees,0011,285.00,Association Of Building Engineers,100019,06/09/2012,10172404
Economy Development & Culture,Building Control Services,BCS00,Training fees,0011,268.75,Association Of Building Engineers,100019,06/09/2012,10172405
Economy Development & Culture,Building Regulation Fee Earning Account,BCS99,Training fees,0011,356.25,Association Of Building Engineers,100019,06/09/2012,10172405
Resources & Corporate Governance ,General Financial Services,GFS00,External Contractor & Operator,0742,1736.00,Audit Commission,100020,20/09/2012,10173558
Housing Revenue Account ,Unplanned Maintenance and Repair,UMR00,R&M External Contractors,0100,1624.71,AWM Electrical Contractors Ltd,100051,13/09/2012,10173111
Housing Revenue Account ,Unplanned Maintenance and Repair,UMR00,R&M External Contractors,0100,4408.18,AWM Electrical Contractors Ltd,100051,13/09/2012,10173144
Capital Program ,Rewiring,HCE20,Capital Contract Payments,5000,3226.00,AWM Electrical Contractors Ltd,100051,13/09/2012,10173144
Housing Revenue Account ,Unplanned Maintenance and Repair,UMR00,R&M External Contractors,0100,1198.14,AWM Electrical Contractors Ltd,100051,13/09/2012,10173148
Housing Revenue Account ,Unplanned Maintenance and Repair,UMR00,R&M External Contractors,0100,1203.79,AWM Electrical Contractors Ltd,100051,27/09/2012,10173704
Housing Revenue Account ,Unplanned Maintenance and Repair,UMR00,R&M External Contractors,0100,517.42,AWM Electrical Contractors Ltd,100051,27/09/2012,10173706
Housing Revenue Account ,Unplanned Maintenance and Repair,UMR00,R&M External Contractors,0100,2151.74,AWM Electrical Contractors Ltd,100051,27/09/2012,10173709
Sustainable Inclusive Communities,CL Grants,CGS00,Grants To Voluntary Organisations,0720,3000.00,Ansty Parish Council,100062,13/09/2012,10173033
Resources & Corporate Governance,Corporate Property R&M,CPA01,R&M External Contractors,0100,894.50,Adt Fire & Security plc,100070,06/09/2012,10172336
,Corporate Property Coders,CP,Other Miscellaneous Expenses,0444,43.49,Adt Fire & Security plc,100070,06/09/2012,10172336
Housing Revenue Account ,Unplanned Maintenance and Repair,UMR00,R&M External Contractors,0100,852.92,Andy Woods Landscapes,100078,13/09/2012,10173102
Housing Revenue Account ,Unplanned Maintenance and Repair,UMR00,R&M External Contractors,0100,1042.37,Andy Woods Landscapes,100078,13/09/2012,10173103
Housing Revenue Account ,Unplanned Maintenance and Repair,UMR00,R&M External Contractors,0100,882.49,Andy Woods Landscapes,100078,13/09/2012,10173147
Housing Revenue Account ,Unplanned Maintenance and Repair,UMR00,R&M External Contractors,0100,912.29,Andy Woods Landscapes,100078,27/09/2012,10173624
Capital Program ,Kitchen Modifications,HIK10,Capital Contract Payments,5000,2297.86,A C E Carpentry & Joinery Contractors Ltd,100085,06/09/2012,10172683
Housing Revenue Account ,Unplanned Maintenance and Repair,UMR00,R&M External Contractors,0100,531.00,A C E Carpentry & Joinery Contractors Ltd,100085,06/09/2012,10172684
Sustainable Inclusive Communities,CL Grants,CGS00,Grants To Voluntary Organisations,0720,1950.00,Brandon And Bretford Parish Council,100153,20/09/2012,10173454
Economy Development & Culture,Decrim. of Car Parking on street parking,DPE02,Maintenance of Equipment,0301,10248.62,Cale Briparc Ltd,100158,06/09/2012,10172855
Economy Development & Culture,Decrim. of Car Parking on street parking,DPE02,R&M External Contractors,0100,510.00,Cale Briparc Ltd,100158,27/09/2012,10173029
Resources & Corporate Governance ,Council Tax and NNDR Collection,CTX01,External Contractor & Operator,0742,42.50,Bristow & Sutor,100159,13/09/2012,10172547
,Revenues Coders,REV,External Contractor & Operator,0742,660.50,Bristow & Sutor,100159,06/09/2012,10172705
Sustainable Environment ,Grass Cutting,PKS13,External Contractor & Operator,0742,2960.00,Binley Woods Parish Council,100183,20/09/2012,10173604
Housing Revenue Account ,Unplanned Maintenance and Repair,UMR00,R&M External Contractors,0100,1188.28,Bowen Builders,100241,13/09/2012,10173074
Housing Revenue Account ,Unplanned Maintenance and Repair,UMR00,R&M External Contractors,0100,1660.17,Bowen Builders,100241,13/09/2012,10173108
Capital Program ,Disabled Adaptations,HCR01,Capital Contract Payments,5000,88.05,Bowen Builders,100241,13/09/2012,10173108
Housing Revenue Account ,Unplanned Maintenance and Repair,UMR00,R&M External Contractors,0100,2777.17,Bowen Builders,100241,13/09/2012,10173109
Capital Program ,Disabled Adaptations,HCR01,Capital Contract Payments,5000,17.61,Bowen Builders,100241,13/09/2012,10173109
Housing Revenue Account ,Unplanned Maintenance and Repair,UMR00,R&M External Contractors,0100,706.97,Bowen Builders,100241,20/09/2012,10173281
Capital Program ,Disabled Adaptations,HCR01,Capital Contract Payments,5000,35.22,Bowen Builders,100241,20/09/2012,10173281
Housing Revenue Account ,Unplanned Maintenance and Repair,UMR00,R&M External Contractors,0100,534.24,Bowen Builders,100241,20/09/2012,10173282
Housing Revenue Account ,Unplanned Maintenance and Repair,UMR00,R&M External Contractors,0100,967.09,Bowen Builders,100241,20/09/2012,10173544
Housing Revenue Account ,Unplanned Maintenance and Repair,UMR00,R&M External Contractors,0100,2120.00,Bowen Builders,100241,27/09/2012,10173627
Housing Revenue Account ,Unplanned Maintenance and Repair,UMR00,R&M External Contractors,0100,5788.75,Barron McCann Ltd,100248,27/09/2012,10173622
Resources & Corporate Governance ,Head of Customer and Information Services,CIS00,Training fees,0011,5232.50,Coventry University,100321,20/09/2012,10173312
Resources & Corporate Governance ,Financial Services,RES10,Training fees,0011,1830.00,Cipfa,100349,20/09/2012,10173462
Resources & Corporate Governance ,Safety and Resilience,EPL00,New Equipment,0300,520.00,Stone Computers,100390,13/09/2012,10173041
Housing Revenue Account ,Stretton Court AP,AGP13,New Equipment,0300,1455.00,Curtains By Design,100526,20/09/2012,10173316
Resources & Corporate Governance ,Domestic Waste Collection,WWC00,Vehicle Repair and Maintenance,0200,504.88,Dennis Eagle Ltd,100559,06/09/2012,10172567
Capital Program ,Disabled Facilities Grant,REN01,Capital Grants,5014,4000.00,Bob Doyle,100575,20/09/2012,10173555
Capital Program ,Bathroom Modifications,HIS01,Capital Contract Payments,5000,17465.00,JADA Building & Maintenance Services Ltd,100583,06/09/2012,10172442
Capital Program ,Bathroom Modifications,HIS01,Capital Contract Payments,5000,19960.00,JADA Building & Maintenance Services Ltd,100583,06/09/2012,10172617
Capital Program ,Bathroom Modifications,HIS01,Capital Contract Payments,5000,14970.00,JADA Building & Maintenance Services Ltd,100583,20/09/2012,10173019
Housing Revenue Account ,Unplanned Maintenance and Repair,UMR00,R&M External Contractors,0100,2748.82,JADA Building & Maintenance Services Ltd,100583,13/09/2012,10173110
Housing Revenue Account ,Sheltered Housing Team,MAN21,Estates,0457,30.23,JADA Building & Maintenance Services Ltd,100583,13/09/2012,10173110
Capital Program ,Bathroom Modifications,HIS01,Capital Contract Payments,5000,19960.00,JADA Building & Maintenance Services Ltd,100583,27/09/2012,10173416
Housing Revenue Account ,Unplanned Maintenance and Repair,UMR00,R&M External Contractors,0100,1710.04,Lee Davies Decorating,100600,20/09/2012,10173284
Housing Revenue Account ,Repainting Schemes,UMR02,R&M External Contractors,0100,3726.27,Lee Davies Decorating,100600,20/09/2012,10173284
Housing Revenue Account ,Albert Square AP,AGP20,Gas,0131,814.51,ESPO,100641,06/09/2012,10171964
Housing Revenue Account ,Lesley Souter House AP,AGP16,Gas,0131,706.19,ESPO,100641,06/09/2012,10171965
Resources & Corporate Governance,Corporate Property Central Utilities,CPA02,Gas,0131,943.78,ESPO,100641,27/09/2012,10173525
Housing Revenue Account ,Albert Square AP,AGP20,Gas,0131,781.11,ESPO,100641,27/09/2012,10173527
Housing Revenue Account ,Lesley Souter House AP,AGP16,Gas,0131,661.96,ESPO,100641,27/09/2012,10173528
Housing Revenue Account ,Tanser Court AP,AGP17,Gas,0131,749.80,ESPO,100641,27/09/2012,10173529
Resources & Corporate Governance,Corporate Property Central Utilities,CPA02,Gas,0131,2529.12,ESPO,100641,27/09/2012,10173542
Resources & Corporate Governance ,Garage Internal,WVR01,Materials,0303,1208.00,Fuchs Lubricants (Uk) Plc,100832,20/09/2012,10173333
,Balance Sheet,BS,Car Leasing Scheme,9244,-1086.42,Lex Autolease Ltd,100844,13/09/2012,10172177
,Balance Sheet,BS,Car Leasing Scheme,9244,-774.55,Lex Autolease Ltd,100844,13/09/2012,10172962
,Balance Sheet,BS,Car Leasing Scheme,9244,2354.47,Lex Autolease Ltd,100844,13/09/2012,10173089
,Balance Sheet,BS,Car Leasing Scheme,9244,3283.21,Lex Autolease Ltd,100844,13/09/2012,10173090
,Balance Sheet,BS,Car Leasing Scheme,9244,1500.42,Lex Autolease Ltd,100844,20/09/2012,10173543
,Balance Sheet,BS,Car Leasing Scheme,9244,3653.12,Lex Autolease Ltd,100844,27/09/2012,10173695
,Balance Sheet,BS,Car Leasing Scheme,9244,-493.40,Lex Autolease Ltd,100844,27/09/2012,10173700
Sustainable Environment ,Caldecott Park/Town Centre Area,PKS00,Maintenance of Equipment,0301,1029.99,GB Sport & Leisure UK Ltd,100920,13/09/2012,10173130
Resources & Corporate Governance ,Human Resources Centralised Services,RES31,Recruitment Expenses,0012,456.62,TMP (UK) LTD,100972,06/09/2012,10172444
Resources & Corporate Governance ,Human Resources Centralised Services,RES31,Recruitment Expenses,0012,767.45,TMP (UK) LTD,100972,06/09/2012,10172445
Resources & Corporate Governance ,Human Resources Centralised Services,RES31,Recruitment Expenses,0012,619.95,TMP (UK) LTD,100972,13/09/2012,10172688
Resources & Corporate Governance ,Human Resources Centralised Services,RES31,Recruitment Expenses,0012,448.98,TMP (UK) LTD,100972,27/09/2012,10173721
Resources & Corporate Governance,Corporate Property R&M,CPA01,R&M External Contractors,0100,532.50,ThyssenKrupp Elevator UK,100985,27/09/2012,10173337
Capital Program ,Bathroom Modifications,HIS01,Capital Contract Payments,5000,5970.00,B Hartwell Plumbers Ltd,100989,06/09/2012,10172199
Capital Program ,Bathroom Modifications,HIS01,Capital Contract Payments,5000,5970.00,B Hartwell Plumbers Ltd,100989,06/09/2012,10172616
Housing Revenue Account ,Unplanned Maintenance and Repair,UMR00,R&M External Contractors,0100,123.87,B Hartwell Plumbers Ltd,100989,13/09/2012,10173105
Capital Program ,Disabled Adaptations,HCR01,Capital Contract Payments,5000,3203.99,B Hartwell Plumbers Ltd,100989,13/09/2012,10173105
Capital Program ,Bathroom Modifications,HIS01,Capital Contract Payments,5000,5970.00,B Hartwell Plumbers Ltd,100989,20/09/2012,10173417
,Corporate Property Coders,CP,New Equipment,0300,200.20,IE Office Equipment Ltd,101114,06/09/2012,10171775
Capital Program ,Corporate Property Enhancements,CPE00,Capital Contract Payments,5000,2806.48,IE Office Equipment Ltd,101114,06/09/2012,10171775
Economy Development & Culture,Ken Marriott Leisure Centre,KML00,Other Miscellaneous Expenses,0444,1003.25,DC Leisure,101195,27/09/2012,10173858
Capital Program ,Great Central Walk Bridge,LEI14,Capital Contract Payments,5000,1150.00,M & J Engineers Ltd,101278,27/09/2012,10173087
Housing Revenue Account ,Unplanned Maintenance and Repair,UMR00,R&M External Contractors,0100,1995.03,MBG Decorators (Rugby Ltd),101288,13/09/2012,10173101
Housing Revenue Account ,Repainting Schemes,UMR02,R&M External Contractors,0100,2458.27,MBG Decorators (Rugby Ltd),101288,13/09/2012,10173101
Resources & Corporate Governance,Handy man,WHM00,Materials,0303,545.00,Melbros Ltd,101291,27/09/2012,10171122
Resources & Corporate Governance,Handy man,WHM00,Materials,0303,1365.00,Melbros Ltd,101291,27/09/2012,10172755
Resources & Corporate Governance,Corporate Property R&M,CPA01,R&M External Contractors,0100,662.10,M W D Services Ltd,101293,20/09/2012,10173097
Resources & Corporate Governance,Corporate Property R&M,CPA01,R&M External Contractors,0100,498.55,M W D Services Ltd,101293,27/09/2012,10173444
Sustainable Inclusive Communities,Housing Options Team,HOT00,Employee wellbeing/Other employee expenses,0021,540.00,Sheila Marston,101356,13/09/2012,10172585
Resources & Corporate Governance ,General Administration,WAD00,Employee wellbeing/Other employee expenses,0021,690.00,Sheila Marston,101356,06/09/2012,10172642
Economy Development & Culture,Economic Development General,ECD00,Training fees,0011,540.00,Sheila Marston,101356,13/09/2012,10172716
Resources & Corporate Governance,Central Business Support Services,CSS15,Photocopying,0354,2115.20,Neopost Ltd,101365,20/09/2012,10173472
Sustainable Inclusive Communities,CL Grants,CGS00,Grants To Voluntary Organisations,0720,3320.00,New Bilton Community Association,101389,20/09/2012,10173034
Capital Program ,Capital Partnership Fund,CGR01,Capital Grants,5014,2400.00,New Bilton Community Association,101389,20/09/2012,10173034
Economy Development & Culture,Visitor Centre,VSC00,Events Tickets - Zero Rated,1405,1925.54,National Express Ltd,101392,13/09/2012,10172681
Capital Program ,Disabled Facilities Grant,REN01,Capital Grants,5014,526.05,Heart of England Housing Association,101400,13/09/2012,10172537
Resources & Corporate Governance,Central Business Support Services,CSS15,External Printing,0352,784.00,Polycopy,101428,20/09/2012,10173485
Resources & Corporate Governance ,Grounds Maintenance,WGM00,Vehicle Running Costs,0201,430.00,Post Office Ltd,101429,13/09/2012,10173063
Resources & Corporate Governance ,Street Cleansing,WSC00,Vehicle Running Costs,0201,215.00,Post Office Ltd,101429,13/09/2012,10173063
Resources & Corporate Governance ,Domestic Waste Collection,WWC00,Vehicle Running Costs,0201,650.00,Post Office Ltd,101429,13/09/2012,10173063
Sustainable Inclusive Communities,Sewage Disposal Plant,SDP00,R&M External Contractors,0100,520.28,PJT Pumping Services,101438,13/09/2012,10173093
Resources & Corporate Governance ,Town Hall,OFF00,Maintenance of Equipment,0301,1375.00,Phs Group Ltd,101480,27/09/2012,10173278
Capital Program ,Electric to Gas Conversions,HIM04,Capital Contract Payments,5000,23030.00,Reeds Plumbing & Heating Contractors Ltd,101504,27/09/2012,10173229
Economy Development & Culture,Art Gallery and Museum,AGM00,Postage & Distribution,0370,35.14,Royal Mail,101554,13/09/2012,10172562
Economy Development & Culture,Building Control Services,BCS00,Postage & Distribution,0370,0.19,Royal Mail,101554,13/09/2012,10172562
Economy Development & Culture,Building Regulation Fee Earning Account,BCS99,Postage & Distribution,0370,0.25,Royal Mail,101554,13/09/2012,10172562
Economy Development & Culture,Car Parks General,CPK01,Postage & Distribution,0370,24.38,Royal Mail,101554,13/09/2012,10172562
Resources & Corporate Governance,Central Business Support Services,CSS15,Postage & Distribution,0370,368.32,Royal Mail,101554,13/09/2012,10172562
Resources & Corporate Governance ,Council Tax and NNDR Collection,CTX01,Postage & Distribution,0370,506.42,Royal Mail,101554,13/09/2012,10172562
Economy Development & Culture,Decrim. of Car Parking on street parking,DPE02,Postage & Distribution,0370,97.52,Royal Mail,101554,13/09/2012,10172562
Resources & Corporate Governance ,Electoral Registration,ERG00,Postage & Distribution,0370,31.96,Royal Mail,101554,13/09/2012,10172562
Sustainable Inclusive Communities,Housing Benefit Administration,HBA00,Postage & Distribution,0370,204.24,Royal Mail,101554,13/09/2012,10172562
Housing Revenue Account ,Supervision and Management General,MAN00,Postage & Distribution,0370,106.54,Royal Mail,101554,13/09/2012,10172562
Economy Development & Culture,Planning General/Income,PLN00,Postage & Distribution,0370,225.43,Royal Mail,101554,13/09/2012,10172562
Economy Development & Culture,Visitor Centre,VSC00,Postage & Distribution,0370,8.04,Royal Mail,101554,13/09/2012,10172562
Resources & Corporate Governance ,General Administration,WAD00,Postage & Distribution,0370,34.81,Royal Mail,101554,13/09/2012,10172562
Economy Development & Culture,Art Gallery and Museum,AGM00,Postage & Distribution,0370,240.78,Royal Mail,101554,20/09/2012,10173261
Economy Development & Culture,Building Control Services,BCS00,Postage & Distribution,0370,2.19,Royal Mail,101554,20/09/2012,10173261
Economy Development & Culture,Building Regulation Fee Earning Account,BCS99,Postage & Distribution,0370,2.90,Royal Mail,101554,20/09/2012,10173261
Economy Development & Culture,Car Parks General,CPK01,Postage & Distribution,0370,52.39,Royal Mail,101554,20/09/2012,10173261
Resources & Corporate Governance,Central Business Support Services,CSS15,Postage & Distribution,0370,294.63,Royal Mail,101554,20/09/2012,10173261
Resources & Corporate Governance ,Council Tax and NNDR Collection,CTX01,Postage & Distribution,0370,227.84,Royal Mail,101554,20/09/2012,10173261
Economy Development & Culture,Decrim. of Car Parking on street parking,DPE02,Postage & Distribution,0370,209.58,Royal Mail,101554,20/09/2012,10173261
Resources & Corporate Governance ,Electoral Registration,ERG00,Postage & Distribution,0370,16.47,Royal Mail,101554,20/09/2012,10173261
Sustainable Inclusive Communities,Housing Benefit Administration,HBA00,Postage & Distribution,0370,133.77,Royal Mail,101554,20/09/2012,10173261
Housing Revenue Account ,Supervision and Management General,MAN00,Postage & Distribution,0370,76.59,Royal Mail,101554,20/09/2012,10173261
Economy Development & Culture,Planning General/Income,PLN00,Postage & Distribution,0370,188.54,Royal Mail,101554,20/09/2012,10173261
Economy Development & Culture,Visitor Centre,VSC00,Postage & Distribution,0370,2.94,Royal Mail,101554,20/09/2012,10173261
Resources & Corporate Governance ,General Administration,WAD00,Postage & Distribution,0370,20.34,Royal Mail,101554,20/09/2012,10173261
Resources & Corporate Governance,Handy man,WHM00,External Contractor & Operator,0742,1133.00,Rugby Plastering Services,101602,13/09/2012,10172423
Housing Revenue Account ,Unplanned Maintenance and Repair,UMR00,R&M External Contractors,0100,1983.16,Rugby Plastering Services,101602,06/09/2012,10172633
Housing Revenue Account ,Unplanned Maintenance and Repair,UMR00,R&M External Contractors,0100,1034.61,Rugby Plastering Services,101602,13/09/2012,10173106
Housing Revenue Account ,Unplanned Maintenance and Repair,UMR00,R&M External Contractors,0100,35.12,Rugby Plastering Services,101602,13/09/2012,10173145
Capital Program ,Fire Risk Assessment,HCE18,Capital Contract Payments,5000,2830.00,Rugby Plastering Services,101602,13/09/2012,10173145
Resources & Corporate Governance,Corporate Property Central Utilities,CPA02,Water Services,0143,643.06,Severn Trent Water Ltd,101610,06/09/2012,10172372
Housing Revenue Account ,Lesley Souter House AP,AGP16,Water Services,0143,1639.70,Severn Trent Water Ltd,101610,06/09/2012,10172638
Sustainable Inclusive Communities,Woodside Park,TVR00,Water Services,0143,1428.01,Severn Trent Water Ltd,101610,13/09/2012,10172911
Resources & Corporate Governance,Corporate Property Central Utilities,CPA02,Water Services,0143,2622.50,Severn Trent Water Ltd,101610,13/09/2012,10172912
Resources & Corporate Governance ,Central Telephone Service,TEL00,Maintenance of Equipment,0301,11639.16,Siemens Enterprise Communications Ltd,101616,06/09/2012,10172358
Capital Program ,Disabled Facilities Grant,REN01,Capital Grants,5014,1830.00,Stannah Stairlifts Ltd,101623,20/09/2012,10173272
Housing Revenue Account ,Unplanned Maintenance and Repair,UMR00,R&M External Contractors,0100,882.00,Steve Diston Contract Flooring,101668,13/09/2012,10173020
Housing Revenue Account ,Unplanned Maintenance and Repair,UMR00,R&M External Contractors,0100,2352.00,Steve Diston Contract Flooring,101668,27/09/2012,10173116
Resources & Corporate Governance ,Maintenance of Customer Services Systems,CIS21,Software Maintenance,0374,7316.00,Techniforce Ltd,101721,13/09/2012,10173030
Resources & Corporate Governance,Handy man,WHM00,Materials,0303,452.90,Travis Perkins Trading Co Ltd,101732,27/09/2012,10172664
Resources & Corporate Governance ,Highways,WHG00,Vehicle Running Costs,0201,72.50,HI-Q Motorway,101736,06/09/2012,10172673
Resources & Corporate Governance ,Domestic Waste Collection,WWC00,Vehicle Running Costs,0201,846.50,HI-Q Motorway,101736,06/09/2012,10172673
Resources & Corporate Governance ,Domestic Waste Collection,WWC00,Vehicle Running Costs,0201,654.50,HI-Q Motorway,101736,06/09/2012,10172756
Resources & Corporate Governance ,Trade Waste Collection,WWC01,Vehicle Running Costs,0201,389.00,HI-Q Motorway,101736,06/09/2012,10172756
Resources & Corporate Governance ,Domestic Waste Collection,WWC00,Vehicle Running Costs,0201,456.98,HI-Q Motorway,101736,27/09/2012,10173667
Resources & Corporate Governance ,Trade Waste Collection,WWC01,Vehicle Running Costs,0201,1033.91,HI-Q Motorway,101736,27/09/2012,10173667
Resources & Corporate Governance ,Domestic Waste Collection,WWC00,Vehicle Running Costs,0201,287.00,HI-Q Motorway,101736,27/09/2012,10173672
Resources & Corporate Governance ,Trade Waste Collection,WWC01,Vehicle Running Costs,0201,624.00,HI-Q Motorway,101736,27/09/2012,10173672
Resources & Corporate Governance ,Domestic Waste Collection,WWC00,Vehicle Repair and Maintenance,0200,816.50,Terberg Matec Uk,101761,27/09/2012,10173663
Resources & Corporate Governance ,Domestic Waste Collection,WWC00,Vehicle Repair and Maintenance,0200,697.39,Terberg Matec Uk,101761,27/09/2012,10173795
,User Balance Sheet Cost Centre,BSU,Section Agreements,9865,480.70,Wicksteed Leisure Limited,101845,13/09/2012,10173159
Resources & Corporate Governance ,Human Resources Centralised Services,RES31,Training fees,0011,1450.00,Warwickshire College,101882,27/09/2012,10173717
Economy Development & Culture,Art Gallery and Museum,AGM00,Contract Cleaning,0170,3827.32,Warwickshire County Council,101893,06/09/2012,10172527
Resources & Corporate Governance ,General Financial Services,GFS00,Consultancy Costs,0740,1175.00,Warwickshire County Council,101893,06/09/2012,10172572
Economy Development & Culture,Planning General/Income,PLN00,Consultancy Costs,0740,2512.93,Warwickshire County Council,101893,20/09/2012,10173648
Resources & Corporate Governance,Handy man,WHM00,External Contractor & Operator,0742,4874.00,Darren Wilson Roofing Ltd,101911,20/09/2012,10170544
Resources & Corporate Governance,Handy man,WHM00,External Contractor & Operator,0742,7440.00,Darren Wilson Roofing Ltd,101911,13/09/2012,10172507
Capital Program ,Heating Upgrades,HIM01,Capital Contract Payments,5000,6228.00,Adroit Services Ltd,101939,06/09/2012,10172409
Capital Program ,Electric to Gas Conversions,HIM04,Capital Contract Payments,5000,2512.38,Adroit Services Ltd,101939,06/09/2012,10172410
Resources & Corporate Governance,Handy man,WHM00,External Contractor & Operator,0742,501.71,Adroit Services Ltd,101939,06/09/2012,10172693
Capital Program ,Heating Upgrades,HIM01,Capital Contract Payments,5000,6664.38,Adroit Services Ltd,101939,13/09/2012,10172728
Housing Revenue Account ,Unplanned Maintenance and Repair,UMR00,R&M External Contractors,0100,153.35,Adroit Services Ltd,101939,13/09/2012,10173080
Capital Program ,Heating Upgrades,HIM01,Capital Contract Payments,5000,6372.00,Adroit Services Ltd,101939,13/09/2012,10173080
Housing Revenue Account ,Unplanned Maintenance and Repair,UMR00,R&M External Contractors,0100,916.13,Adroit Services Ltd,101939,13/09/2012,10173098
Housing Revenue Account ,Unplanned Maintenance and Repair,UMR00,R&M External Contractors,0100,1006.45,Adroit Services Ltd,101939,13/09/2012,10173099
Housing Revenue Account ,Sheltered Housing Team,MAN21,Estates,0457,23.35,Adroit Services Ltd,101939,13/09/2012,10173099
Capital Program ,Disabled Adaptations,HCR01,Capital Contract Payments,5000,97.21,Adroit Services Ltd,101939,13/09/2012,10173099
Capital Program ,Electric to Gas Conversions,HIM04,Capital Contract Payments,5000,9613.14,Adroit Services Ltd,101939,20/09/2012,10173118
Capital Program ,Electric to Gas Conversions,HIM04,Capital Contract Payments,5000,10049.52,Adroit Services Ltd,101939,27/09/2012,10173499
Housing Revenue Account ,Unplanned Maintenance and Repair,UMR00,R&M External Contractors,0100,1176.93,Adroit Services Ltd,101939,27/09/2012,10173625
Housing Revenue Account ,Unplanned Maintenance and Repair,UMR00,R&M External Contractors,0100,1066.90,Adroit Services Ltd,101939,27/09/2012,10173626
Capital Program ,Electric to Gas Conversions,HIM04,Capital Contract Payments,5000,4588.38,Adroit Services Ltd,101939,27/09/2012,10173784
Housing Revenue Account ,Supervision and Management General,MAN00,Payments to Other Local Authorities,0710,23839.93,Nuneaton & Bedworth Borough Council,108060,20/09/2012,10173084
Resources & Corporate Governance ,Central Telephone Service,TEL00,Telephone Expenses,0371,884.67,British Telecommunications PLC,108425,27/09/2012,10173659
Capital Program ,Crematorium Project,BUR04,Capital Contract Payments,5000,13708.20,Daventry District Council,108940,20/09/2012,10173601
Capital Program ,Crematorium Project,BUR04,Miscellaneous Capital Expenditure,5020,18369.79,Daventry District Council,108940,20/09/2012,10173601
Sustainable Environment ,Caldecott Park/Town Centre Area,PKS00,External Contractor & Operator,0742,1376.50,Boughton Loam Limited,110360,20/09/2012,10173575
Resources & Corporate Governance ,Garage Internal,WVR01,Materials,0303,34632.69,Watson Petroleum,110361,27/09/2012,10173798
Resources & Corporate Governance,Corporate Property R&M,CPA01,R&M External Contractors,0100,618.34,Croxford Electrical,110451,27/09/2012,10173224
Resources & Corporate Governance,Corporate Property R&M,CPA01,R&M External Contractors,0100,599.85,Croxford Electrical,110451,27/09/2012,10173225
Resources & Corporate Governance,Central Business Support Services,CSS15,Photocopying,0354,4353.39,Ricoh UK Limited,111532,06/09/2012,10172263
Resources & Corporate Governance,Central Business Support Services,CSS15,Photocopying,0354,2821.94,Ricoh UK Limited,111532,20/09/2012,10172264
Resources & Corporate Governance ,Maintenance of Customer Services Systems,CIS21,Software Purchase,0373,5257.01,Experian Ltd,112302,20/09/2012,10173307
Resources & Corporate Governance ,IT Procurement,CMP00,IT Capital Expenditure,5025,945.00,Civica UK Ltd,112724,27/09/2012,10172852
Resources & Corporate Governance ,Maintenance of Customer Services Systems,CIS21,Software Maintenance,0374,1400.00,Civica UK Ltd,112724,13/09/2012,10172968
Resources & Corporate Governance ,Domestic Waste Collection,WWC00,Agency Staff,0003,714.29,Extra Personnel Limited,112996,06/09/2012,10171447
Resources & Corporate Governance ,Domestic Waste Collection,WWC00,Agency Staff,0003,1023.17,Extra Personnel Limited,112996,06/09/2012,10171788
Resources & Corporate Governance ,Domestic Waste Collection,WWC00,Agency Staff,0003,1275.07,Extra Personnel Limited,112996,06/09/2012,10172721
Economy Development & Culture,Street Furniture,HIG01,External Contractor & Operator,0742,444.10,Acorn Environmental Management Group Ltd,113313,13/09/2012,10173047
Resources & Corporate Governance ,Grounds Maintenance,WGM00,Vehicle Repair and Maintenance,0200,436.23,Indespension Ltd. (Northampton),113436,06/09/2012,10171057
Resources & Corporate Governance ,Grounds Maintenance,WGM00,Vehicle Repair and Maintenance,0200,436.23,Indespension Ltd. (Northampton),113436,06/09/2012,10172623
Resources & Corporate Governance ,Grounds Maintenance,WGM00,Vehicle Repair and Maintenance,0200,-436.23,Indespension Ltd. (Northampton),113436,06/09/2012,10172624
Economy Development & Culture,Visitor Centre,VSC00,Events Tickets - Zero Rated,1405,1445.40,Catteralls Coach and Travel Services,113835,06/09/2012,10172530
Economy Development & Culture,Ken Marriott Leisure Centre,KML00,External Contractor & Operator,0742,25181.06,DC Leisure Management Ltd (Otium),114443,06/09/2012,10172853
Housing Revenue Account ,Unplanned Maintenance and Repair,UMR00,R&M External Contractors,0100,1341.40,Temple Lifts Ltd,114738,13/09/2012,10172964
Sustainable Environment ,Cemeteries General,CEM00,Purchases for Resale,0305,591.00,Streetmaster (South Wales) Ltd,114898,13/09/2012,10173202
Economy Development & Culture,Economic Development General,ECD00,Development Activities,0450,4800.00,Roger Griffiths Associates,118799,13/09/2012,10172897
Resources & Corporate Governance,Corporate Property Central Utilities,CPA02,Electricity,0130,8752.75,Southern Electric,118976,27/09/2012,10173450
Resources & Corporate Governance,Corporate Property Central Utilities,CPA02,Electricity,0130,482.08,Southern Electric,118976,27/09/2012,10173451
Resources & Corporate Governance ,WSU Depot,WDP00,Electricity,0130,3778.47,Southern Electric,118976,27/09/2012,10173451
Resources & Corporate Governance ,Domestic Waste Collection,WWC00,Agency Staff,0003,437.63,Taskforce Recruitment Ltd,119614,13/09/2012,10173055
Resources & Corporate Governance,Handy man,WHM00,Agency Staff,0003,246.00,G-Staff Ltd,120173,06/09/2012,10172594
Resources & Corporate Governance ,Street Cleansing,WSC00,Agency Staff,0003,426.29,G-Staff Ltd,120173,06/09/2012,10172594
Resources & Corporate Governance ,Domestic Waste Collection,WWC00,Agency Staff,0003,1329.03,G-Staff Ltd,120173,06/09/2012,10172594
Resources & Corporate Governance,Handy man,WHM00,Agency Staff,0003,241.90,G-Staff Ltd,120173,13/09/2012,10173062
Resources & Corporate Governance ,Street Cleansing,WSC00,Agency Staff,0003,469.17,G-Staff Ltd,120173,13/09/2012,10173062
Resources & Corporate Governance ,Domestic Waste Collection,WWC00,Agency Staff,0003,2386.72,G-Staff Ltd,120173,13/09/2012,10173062
Resources & Corporate Governance ,Maintenance of Customer Services Systems,CIS21,Software Maintenance,0374,1560.00,Iken Business Ltd,121287,06/09/2012,10172909
,Balance Sheet,BS,Car Loan Scheme,9261,2195.00,Lower Street Garage,121709,27/09/2012,10173834
Housing Revenue Account ,Supervision and Management General,MAN00,Publicity & Marketing,0377,1330.00,Janus Kreative,121748,27/09/2012,10173804
Resources & Corporate Governance ,Highways,WHG00,Materials,0303,338.91,Brinklow Quarry,122921,20/09/2012,10172850
Housing Revenue Account ,Maintenance of Open Spaces,MOS00,External Contractor & Operator,0742,470.56,Brinklow Quarry,122921,20/09/2012,10172850
Resources & Corporate Governance ,Highways,WHG00,External Contractor & Operator,0742,54.62,Brinklow Quarry,122921,20/09/2012,10172850
Sustainable Environment ,Caldecott Park/Town Centre Area,PKS00,Maintenance of Equipment,0301,944.59,Proludic,123148,13/09/2012,10172334
Capital Program ,Open Spaces Refurbishment,LEI08,Capital Contract Payments,5000,9494.00,Proludic,123148,06/09/2012,10172340
Resources & Corporate Governance ,Central Telephone Service,TEL00,Telephone Expenses,0371,1027.37,Cable & Wireless,123224,13/09/2012,10172971
Resources & Corporate Governance ,IT Procurement,CMP00,IT Capital Expenditure,5025,695.00,Integra Associates Ltd,124585,13/09/2012,10172969
Resources & Corporate Governance ,IT Procurement,CMP00,IT Capital Expenditure,5025,2085.00,Integra Associates Ltd,124585,13/09/2012,10173236
Housing Revenue Account ,Unplanned Maintenance and Repair,UMR00,R&M External Contractors,0100,621.17,Utilitycom Ltd,124856,20/09/2012,10171926
Resources & Corporate Governance ,Garage Internal,WVR01,Materials,0303,740.49,Shell U.K. Oil Products Limited,125672,06/09/2012,10172725
Resources & Corporate Governance,Handy man,WHM00,Vehicle Repair and Maintenance,0200,465.00,Guest Trucks,126437,13/09/2012,10173246
Sustainable Environment ,Parks and Open Spaces,ENV20,Telephone Expenses,0371,930.00,Orange PCS Limited,127916,13/09/2012,10172591
Sustainable Environment ,Street Scene,ENV30,Telephone Expenses,0371,155.00,Orange PCS Limited,127916,13/09/2012,10172591
,Burglary,CAD03,Development Activities,0450,2122.00,"Rapid Vision Systems Ltd.,",128670,20/09/2012,10173040
Resources & Corporate Governance,Handy man,WHM00,Contract Hire,0220,91.15,M P Hudson & Son,129334,06/09/2012,10172596
Resources & Corporate Governance,Handy man,WHM00,External Contractor & Operator,0742,640.00,M P Hudson & Son,129334,06/09/2012,10172596
Resources & Corporate Governance,Handy man,WHM00,Contract Hire,0220,42.10,M P Hudson & Son,129334,13/09/2012,10173243
Resources & Corporate Governance,Handy man,WHM00,External Contractor & Operator,0742,592.50,M P Hudson & Son,129334,13/09/2012,10173243
Resources & Corporate Governance,Handy man,WHM00,Contract Hire,0220,90.00,M P Hudson & Son,129334,20/09/2012,10173584
Resources & Corporate Governance,Handy man,WHM00,External Contractor & Operator,0742,645.00,M P Hudson & Son,129334,20/09/2012,10173584
Resources & Corporate Governance ,Human Resources Centralised Services,RES31,Training fees,0011,528.00,Land Quality Management Ltd,129450,27/09/2012,10173486
Resources & Corporate Governance ,Grounds Maintenance,WGM00,External Contractor & Operator,0742,760.00,Complete Weed Control,129556,20/09/2012,10173045
Resources & Corporate Governance ,Support Services,CIS20,Conference & Seminar Fees,0401,420.00,APP User Group,129978,27/09/2012,10173651
Economy Development & Culture,Economic Development General,ECD00,Development Activities,0450,1500.00,Rugby First Limited - Town Centre,130214,06/09/2012,10172142
Resources & Corporate Governance ,Support Services,CIS20,Software Maintenance,0374,3679.80,Toplevel Computing Ltd,131444,13/09/2012,10172896
Resources & Corporate Governance ,Electoral Registration,ERG00,Telephone Registration,0411,1244.32,Electoral Reform Services,131623,13/09/2012,10173026
Economy Development & Culture,Car Parks General,CPK01,Cash Collection,0744,1035.72,Jade Security Services Ltd,131711,27/09/2012,10173556
Economy Development & Culture,Decrim. of Car Parking on street parking,DPE02,Cash Collection,0744,728.84,Jade Security Services Ltd,131711,27/09/2012,10173557
Capital Program ,Disabled Facilities Grant,REN01,Capital Grants,5014,10031.00,D K Builders,131946,13/09/2012,10173228
Sustainable Inclusive Communities,Housing Options Team,HOT00,Rents,0140,784.00,N Mallidi,132033,13/09/2012,10172908
Housing Revenue Account ,Unplanned Maintenance and Repair,UMR00,R&M External Contractors,0100,2044.62,Wilson Electrics,132051,27/09/2012,10173950
Housing Revenue Account ,Unplanned Maintenance and Repair,UMR00,R&M External Contractors,0100,965.52,Wilson Electrics,132051,27/09/2012,10173951
Economy Development & Culture,Economic Development General,ECD00,Development Activities,0450,1000.00,Rugby First Ltd - BID,133176,06/09/2012,10172187
Resources & Corporate Governance ,Highways,WHG00,Materials,0303,580.36,Breedon Aggregates England Limited,133309,06/09/2012,10172200
Resources & Corporate Governance ,Highways,WHG00,Materials,0303,1211.17,Breedon Aggregates England Limited,133309,27/09/2012,10173587
Resources & Corporate Governance,Handy man,WHM00,External Contractor & Operator,0742,1064.00,Homecare Decorating,133884,13/09/2012,10172882
Resources & Corporate Governance,Handy man,WHM00,External Contractor & Operator,0742,899.00,Homecare Decorating,133884,13/09/2012,10172883
Resources & Corporate Governance,Handy man,WHM00,External Contractor & Operator,0742,899.00,Homecare Decorating,133884,13/09/2012,10172886
Housing Revenue Account ,Unplanned Maintenance and Repair,UMR00,R&M External Contractors,0100,13601.51,Sunfish Services Ltd,133886,13/09/2012,10173146
Resources & Corporate Governance,Corporate Property R&M,CPA01,R&M External Contractors,0100,720.00,Sunfish Services Ltd,133886,27/09/2012,10173469
Housing Revenue Account ,Unplanned Maintenance and Repair,UMR00,R&M External Contractors,0100,2088.20,Delec Ltd,133887,13/09/2012,10173112
Housing Revenue Account ,Unplanned Maintenance and Repair,UMR00,R&M External Contractors,0100,2286.15,Delec Ltd,133887,13/09/2012,10173113
Sustainable Inclusive Communities,Woodside Park,TVR00,R&M External Contractors,0100,241.15,Delec Ltd,133887,13/09/2012,10173114
Housing Revenue Account ,Unplanned Maintenance and Repair,UMR00,R&M External Contractors,0100,1294.03,Delec Ltd,133887,13/09/2012,10173114
Housing Revenue Account ,Unplanned Maintenance and Repair,UMR00,R&M External Contractors,0100,1493.48,Delec Ltd,133887,20/09/2012,10173280
Housing Revenue Account ,Unplanned Maintenance and Repair,UMR00,R&M External Contractors,0100,1222.58,Delec Ltd,133887,27/09/2012,10173623
Resources & Corporate Governance ,Domestic Waste Collection,WWC00,Vehicle Repair and Maintenance,0200,894.38,Heil Europe Ltd,137390,06/09/2012,10172613
Sustainable Environment ,Street Scene,ENV30,R&M External Contractors,0100,3275.00,Listers Geotechnical Consultants Ltd,138527,13/09/2012,10173058
Resources & Corporate Governance ,Town Hall,OFF00,Contract Cleaning,0170,4280.55,Regent Office Care Ltd T/A Regent Cleaning,138934,20/09/2012,10173222
Resources & Corporate Governance ,WSU Depot,WDP00,Contract Cleaning,0170,219.00,Regent Office Care Ltd T/A Regent Cleaning,138934,20/09/2012,10173222
Resources & Corporate Governance ,Grounds Maintenance,WGM00,Contract Cleaning,0170,147.50,Regent Office Care Ltd T/A Regent Cleaning,138934,20/09/2012,10173222
Housing Revenue Account ,Sheltered Housing,AGP00,Contract Cleaning,0170,14297.47,Regent Office Care Ltd T/A Regent Cleaning,138934,13/09/2012,10173223
Sustainable Inclusive Communities,Housing Options Team,HOT00,Contract Cleaning,0170,134.76,Regent Office Care Ltd T/A Regent Cleaning,138934,13/09/2012,10173223
Housing Revenue Account ,Estate Management,MAN22,Contract Cleaning,0170,3078.90,Regent Office Care Ltd T/A Regent Cleaning,138934,13/09/2012,10173223
Housing Revenue Account ,Multi-Storey Flats,MSF00,Contract Cleaning,0170,1731.90,Regent Office Care Ltd T/A Regent Cleaning,138934,13/09/2012,10173223
Housing Revenue Account ,Unplanned Maintenance and Repair,UMR00,R&M External Contractors,0100,2987.41,Regent Office Care Ltd T/A Regent Cleaning,138934,20/09/2012,10173283
Housing Revenue Account ,Unplanned Maintenance and Repair,UMR00,R&M External Contractors,0100,260.00,Rider Levett Bucknall UK Ltd,139918,06/09/2012,10172632
Housing Revenue Account ,Asbestos Surveys,UMR05,R&M External Contractors,0100,650.00,Rider Levett Bucknall UK Ltd,139918,06/09/2012,10172632
Capital Program ,Kitchen Modifications,HIK10,Capital Contract Payments,5000,780.00,Rider Levett Bucknall UK Ltd,139918,06/09/2012,10172632
Capital Program ,Heating Upgrades,HIM01,Capital Contract Payments,5000,260.00,Rider Levett Bucknall UK Ltd,139918,06/09/2012,10172632
Capital Program ,Electric to Gas Conversions,HIM04,Capital Contract Payments,5000,260.00,Rider Levett Bucknall UK Ltd,139918,06/09/2012,10172632
Capital Program ,Bathroom Modifications,HIS01,Capital Contract Payments,5000,910.00,Rider Levett Bucknall UK Ltd,139918,06/09/2012,10172632
Housing Revenue Account ,Unplanned Maintenance and Repair,UMR00,R&M External Contractors,0100,260.00,Rider Levett Bucknall UK Ltd,139918,20/09/2012,10173545
Housing Revenue Account ,Asbestos Surveys,UMR05,R&M External Contractors,0100,650.00,Rider Levett Bucknall UK Ltd,139918,20/09/2012,10173545
Capital Program ,Kitchen Modifications,HIK10,Capital Contract Payments,5000,130.00,Rider Levett Bucknall UK Ltd,139918,20/09/2012,10173545
Capital Program ,Heating Upgrades,HIM01,Capital Contract Payments,5000,130.00,Rider Levett Bucknall UK Ltd,139918,20/09/2012,10173545
Capital Program ,Electric to Gas Conversions,HIM04,Capital Contract Payments,5000,650.00,Rider Levett Bucknall UK Ltd,139918,20/09/2012,10173545
Capital Program ,Bathroom Modifications,HIS01,Capital Contract Payments,5000,130.00,Rider Levett Bucknall UK Ltd,139918,20/09/2012,10173545
Resources & Corporate Governance ,Maintenance of Customer Services Systems,CIS21,Software Maintenance,0374,4276.44,Midland Software Ltd,140463,06/09/2012,10172629
,Balance Sheet,BS,Car Loan Scheme,9261,7000.00,REDACTED PERSONAL DATA,140681,20/09/2012,10173620
Resources & Corporate Governance ,Customer and Information Strategy,CIS10,Telephone Expenses,0371,793.16,Zen Internet Ltd,141612,06/09/2012,10172255
Resources & Corporate Governance ,Customer and Information Strategy,CIS10,Telephone Expenses,0371,793.16,Zen Internet Ltd,141612,27/09/2012,10173877
Capital Program ,Bathroom Modifications,HIS01,Capital Contract Payments,5000,12870.00,Ian Williams Ltd,142238,27/09/2012,10172618
Resources & Corporate Governance ,Customer and Information Strategy,CIS10,Hardware Maintenance,0376,588.00,Comodo CA Ltd,143874,20/09/2012,10173436
Resources & Corporate Governance ,Support Services,CIS20,Software Maintenance,0374,3569.00,thetechnologyforge,145065,06/09/2012,10172628
Housing Revenue Account ,Control Centre CCTV,CCE01,External Contractor & Operator,0742,15928.66,Securitas Security Personnel Ltd,145079,13/09/2012,10172842
Sustainable Environment ,Caldecott Park/Town Centre Area,PKS00,Maintenance of Equipment,0301,1889.85,Matta Products (UK),145081,13/09/2012,10172763
Resources & Corporate Governance ,Maintenance of Customer Services Systems,CIS21,Software Maintenance,0374,446.48,Wishtrac House Limited,145089,06/09/2012,10172904
Housing Revenue Account ,Property Maintenance,MAN23,Agency Staff,0003,928.00,James Andrews Recruitment Solutions Ltd,145100,13/09/2012,10172847
Housing Revenue Account ,Property Maintenance,MAN23,Agency Staff,0003,1196.25,James Andrews Recruitment Solutions Ltd,145100,13/09/2012,10173211
Housing Revenue Account ,Property Maintenance,MAN23,Agency Staff,0003,598.97,James Andrews Recruitment Solutions Ltd,145100,20/09/2012,10173237
Economy Development & Culture,Ken Marriott Leisure Centre,KML00,Other,0763,1062.50,LAVAT Consulting Limited,145204,20/09/2012,10173460
Resources & Corporate Governance ,Street Cleansing,WSC00,Agency Staff,0003,445.00,Blue Arrow Limited,145492,06/09/2012,10172770
Resources & Corporate Governance ,Domestic Waste Collection,WWC00,Agency Staff,0003,160.81,Blue Arrow Limited,145492,06/09/2012,10172770
Resources & Corporate Governance ,WSU Depot,WDP00,Messing Facilities,0332,7266.00,Three Counties Steel Buildings Limited,145562,13/09/2012,10172849
Resources & Corporate Governance ,Highways,WHG00,Materials,0303,479.69,Midland Rock Leicester Ltd,145830,06/09/2012,10172715
Resources & Corporate Governance ,Legal Services,DEM20,External Legal Costs,0741,3000.00,HMCTS,145933,20/09/2012,10173443
Economy Development & Culture,Planning General/Income,PLN00,Training fees,0011,2997.50,Ilex Tutorial College Ltd,146010,27/09/2012,10173867
Resources & Corporate Governance ,Human Resources Centralised Services,RES31,Training fees,0011,850.00,SB Asbestos Management Ltd,146090,27/09/2012,10173642
Resources & Corporate Governance ,Human Resources Centralised Services,RES31,Materials,0303,38.00,SB Asbestos Management Ltd,146090,27/09/2012,10173642
Resources & Corporate Governance,Handy man,WHM00,Materials,0303,658.71,Sapphire Glass Merchants,146549,27/09/2012,10173368
Resources & Corporate Governance ,Street Cleansing,WSC00,Materials,0303,943.82,Sapphire Glass Merchants,146549,20/09/2012,10173395
Resources & Corporate Governance ,Domestic Waste Collection,WWC00,Agency Staff,0003,244.58,Fresh Recruitment Solutions (FRS) Ltd,146784,06/09/2012,10172599
Resources & Corporate Governance ,Trade Waste Collection,WWC01,Agency Staff,0003,173.92,Fresh Recruitment Solutions (FRS) Ltd,146784,06/09/2012,10172599
Resources & Corporate Governance,Handy man,WHM00,Agency Staff,0003,512.05,Fresh Recruitment Solutions (FRS) Ltd,146784,06/09/2012,10172606
Resources & Corporate Governance,Handy man,WHM00,Agency Staff,0003,436.29,Fresh Recruitment Solutions (FRS) Ltd,146784,06/09/2012,10172920
Resources & Corporate Governance ,Domestic Waste Collection,WWC00,Agency Staff,0003,503.90,Fresh Recruitment Solutions (FRS) Ltd,146784,06/09/2012,10172923
Resources & Corporate Governance ,Domestic Waste Collection,WWC00,Agency Staff,0003,503.90,Fresh Recruitment Solutions (FRS) Ltd,146784,06/09/2012,10172927
Resources & Corporate Governance ,Domestic Waste Collection,WWC00,Agency Staff,0003,296.57,Fresh Recruitment Solutions (FRS) Ltd,146784,06/09/2012,10172928
Resources & Corporate Governance ,Trade Waste Collection,WWC01,Agency Staff,0003,410.20,Fresh Recruitment Solutions (FRS) Ltd,146784,06/09/2012,10172928
Resources & Corporate Governance ,Trade Waste Collection,WWC01,Agency Staff,0003,589.46,Fresh Recruitment Solutions (FRS) Ltd,146784,06/09/2012,10172930
Capital Program ,Heating Upgrades,HIM01,Capital Contract Payments,5000,6740.00,Jacobs Engineering UK Ltd,146808,06/09/2012,10167829
Resources & Corporate Governance,Corporate Property R&M,CPA01,R&M External Contractors,0100,2525.00,Environmental Essentials Ltd,146842,13/09/2012,10172690
Resources & Corporate Governance ,Retired Employees,RET00,Additional Pension Payments,0014,11636.85,WCC Pension Fund,146914,20/09/2012,10173449
Economy Development & Culture,Art Gallery and Museum,AGM00,Postage & Distribution,0370,2.49,TNT Post Midlands Ltd,146983,13/09/2012,10172279
Economy Development & Culture,Building Control Services,BCS00,Postage & Distribution,0370,6.74,TNT Post Midlands Ltd,146983,13/09/2012,10172279
Economy Development & Culture,Building Regulation Fee Earning Account,BCS99,Postage & Distribution,0370,8.94,TNT Post Midlands Ltd,146983,13/09/2012,10172279
Resources & Corporate Governance,Central Business Support Services,CSS15,Postage & Distribution,0370,47.97,TNT Post Midlands Ltd,146983,13/09/2012,10172279
Resources & Corporate Governance ,Council Tax and NNDR Collection,CTX01,Postage & Distribution,0370,327.86,TNT Post Midlands Ltd,146983,13/09/2012,10172279
Resources & Corporate Governance ,Electoral Registration,ERG00,Postage & Distribution,0370,165.92,TNT Post Midlands Ltd,146983,13/09/2012,10172279
Sustainable Inclusive Communities,Housing Benefit Administration,HBA00,Postage & Distribution,0370,192.74,TNT Post Midlands Ltd,146983,13/09/2012,10172279
Housing Revenue Account ,Supervision and Management General,MAN00,Postage & Distribution,0370,87.58,TNT Post Midlands Ltd,146983,13/09/2012,10172279
Economy Development & Culture,Visitor Centre,VSC00,Postage & Distribution,0370,7.92,TNT Post Midlands Ltd,146983,13/09/2012,10172279
Resources & Corporate Governance ,General Administration,WAD00,Postage & Distribution,0370,25.97,TNT Post Midlands Ltd,146983,13/09/2012,10172279
Economy Development & Culture,Building Control Services,BCS00,Postage & Distribution,0370,0.74,TNT Post Midlands Ltd,146983,13/09/2012,10172614
Economy Development & Culture,Building Regulation Fee Earning Account,BCS99,Postage & Distribution,0370,0.98,TNT Post Midlands Ltd,146983,13/09/2012,10172614
Resources & Corporate Governance,Central Business Support Services,CSS15,Postage & Distribution,0370,61.45,TNT Post Midlands Ltd,146983,13/09/2012,10172614
Resources & Corporate Governance ,Council Tax and NNDR Collection,CTX01,Postage & Distribution,0370,177.07,TNT Post Midlands Ltd,146983,13/09/2012,10172614
Resources & Corporate Governance ,Electoral Registration,ERG00,Postage & Distribution,0370,741.08,TNT Post Midlands Ltd,146983,13/09/2012,10172614
Sustainable Inclusive Communities,Housing Benefit Administration,HBA00,Postage & Distribution,0370,151.29,TNT Post Midlands Ltd,146983,13/09/2012,10172614
Housing Revenue Account ,Supervision and Management General,MAN00,Postage & Distribution,0370,127.60,TNT Post Midlands Ltd,146983,13/09/2012,10172614
Resources & Corporate Governance ,General Administration,WAD00,Postage & Distribution,0370,5.21,TNT Post Midlands Ltd,146983,13/09/2012,10172614
Economy Development & Culture,Art Gallery and Museum,AGM00,Postage & Distribution,0370,67.96,TNT Post Midlands Ltd,146983,20/09/2012,10172694
Economy Development & Culture,Building Control Services,BCS00,Postage & Distribution,0370,5.27,TNT Post Midlands Ltd,146983,20/09/2012,10172694
Economy Development & Culture,Building Regulation Fee Earning Account,BCS99,Postage & Distribution,0370,6.98,TNT Post Midlands Ltd,146983,20/09/2012,10172694
Resources & Corporate Governance,Central Business Support Services,CSS15,Postage & Distribution,0370,62.94,TNT Post Midlands Ltd,146983,20/09/2012,10172694
Resources & Corporate Governance ,Council Tax and NNDR Collection,CTX01,Postage & Distribution,0370,185.95,TNT Post Midlands Ltd,146983,20/09/2012,10172694
Resources & Corporate Governance ,Electoral Registration,ERG00,Postage & Distribution,0370,40.90,TNT Post Midlands Ltd,146983,20/09/2012,10172694
Sustainable Inclusive Communities,Housing Benefit Administration,HBA00,Postage & Distribution,0370,156.36,TNT Post Midlands Ltd,146983,20/09/2012,10172694
Housing Revenue Account ,Supervision and Management General,MAN00,Postage & Distribution,0370,96.59,TNT Post Midlands Ltd,146983,20/09/2012,10172694
Resources & Corporate Governance ,General Administration,WAD00,Postage & Distribution,0370,12.27,TNT Post Midlands Ltd,146983,20/09/2012,10172694
Economy Development & Culture,Art Gallery and Museum,AGM00,Postage & Distribution,0370,93.04,TNT Post Midlands Ltd,146983,27/09/2012,10173293
Economy Development & Culture,Building Control Services,BCS00,Postage & Distribution,0370,4.39,TNT Post Midlands Ltd,146983,27/09/2012,10173293
Economy Development & Culture,Building Regulation Fee Earning Account,BCS99,Postage & Distribution,0370,5.81,TNT Post Midlands Ltd,146983,27/09/2012,10173293
Resources & Corporate Governance,Central Business Support Services,CSS15,Postage & Distribution,0370,41.79,TNT Post Midlands Ltd,146983,27/09/2012,10173293
Resources & Corporate Governance ,Council Tax and NNDR Collection,CTX01,Postage & Distribution,0370,174.88,TNT Post Midlands Ltd,146983,27/09/2012,10173293
Resources & Corporate Governance ,Electoral Registration,ERG00,Postage & Distribution,0370,2.06,TNT Post Midlands Ltd,146983,27/09/2012,10173293
Sustainable Inclusive Communities,Housing Benefit Administration,HBA00,Postage & Distribution,0370,132.78,TNT Post Midlands Ltd,146983,27/09/2012,10173293
Housing Revenue Account ,Supervision and Management General,MAN00,Postage & Distribution,0370,32.09,TNT Post Midlands Ltd,146983,27/09/2012,10173293
Resources & Corporate Governance ,General Administration,WAD00,Postage & Distribution,0370,10.01,TNT Post Midlands Ltd,146983,27/09/2012,10173293
Housing Revenue Account ,Repainting Schemes,UMR02,R&M External Contractors,0100,6111.32,Bell Decorating Group Ltd,147075,20/09/2012,10173549
Housing Revenue Account ,Repainting Schemes,UMR02,R&M External Contractors,0100,2346.25,Bell Decorating Group Ltd,147075,27/09/2012,10173952
Capital Program ,Disabled Adaptations,HCR01,Capital Contract Payments,5000,4237.32,Intelligent Disabled Solutions Ltd,147081,20/09/2012,10173279
Capital Program ,Disabled Adaptations,HCR01,Capital Contract Payments,5000,5506.88,Intelligent Disabled Solutions Ltd,147081,27/09/2012,10173703
Resources & Corporate Governance ,General Administration,WAD00,Stationery Supplies,0350,495.00,William Pollard & Co Ltd,147091,20/09/2012,10173582
Resources & Corporate Governance ,Domestic Waste Collection,WWC00,External Contractor & Operator,0742,450.00,James Baxter Haulage Ltd,147159,06/09/2012,10172590
Resources & Corporate Governance ,Domestic Waste Collection,WWC00,External Contractor & Operator,0742,450.00,James Baxter Haulage Ltd,147159,20/09/2012,10173299
Capital Program ,Queen's Diamond Jubilee Leisure Centre Project,LEI03,Capital Contract Payments,5000,4428.75,B3 Architects,147190,06/09/2012,10172578
Resources & Corporate Governance ,Human Resources Centralised Services,RES31,Training fees,0011,582.00,Globe Training,147192,27/09/2012,10173875
Sustainable Inclusive Communities,Housing Strategy & Enabling,HSE00,Other,0763,1000.00,Midlands Rural Housing,147202,13/09/2012,10173032
Resources & Corporate Governance,Corporate Property R&M,CPA01,R&M External Contractors,0100,418.00,AirTech Controls Ltd,147262,27/09/2012,10173305
Resources & Corporate Governance,Handy man,WHM00,External Contractor & Operator,0742,487.99,Stewart Groom Flooring,147316,06/09/2012,10172876
Resources & Corporate Governance,Handy man,WHM00,Materials,0303,590.80,Robert Pochin Limited,147536,06/09/2012,10172610
Resources & Corporate Governance,Handy man,WHM00,Materials,0303,439.50,Robert Pochin Limited,147536,20/09/2012,10173319
Capital Program ,Disabled Facilities Grant,REN01,Capital Grants,5014,4350.00,Pollards Property Solution,147541,27/09/2012,10173879
Economy Development & Culture,Art Gallery and Museum,AGM00,Software Maintenance,0374,1068.75,Adlib Information Systems Ltd,147565,06/09/2012,10172339
Capital Program ,Viaduct Cycleways,CYC02,Capital Contract Payments,5000,62322.95,Currall Lewis & Martin (Construction) Ltd,147769,20/09/2012,10173467
Resources & Corporate Governance ,"Communications, Consultation and Information Team",BTR20,Publicity & Marketing,0377,6750.00,Cole Creative Communications Ltd,147857,13/09/2012,10172570
Resources & Corporate Governance ,"Communications, Consultation and Information Team",BTR20,Publicity & Marketing,0377,4500.00,Cole Creative Communications Ltd,147857,13/09/2012,10172571
Resources & Corporate Governance,Handy man,WHM00,External Contractor & Operator,0742,537.00,Coventry Garage Doors,147883,06/09/2012,10172518
Capital Program ,Queen's Diamond Jubilee Leisure Centre Project,LEI03,Capital Contract Payments,5000,564284.88,Shepherd Construction Ltd,148014,13/09/2012,10173221
Resources & Corporate Governance,Handy man,WHM00,External Contractor & Operator,0742,585.00,Dean Hudson,148035,06/09/2012,10172597
Resources & Corporate Governance,Handy man,WHM00,External Contractor & Operator,0742,592.50,Dean Hudson,148035,13/09/2012,10173242
Resources & Corporate Governance,Handy man,WHM00,External Contractor & Operator,0742,562.50,Dean Hudson,148035,20/09/2012,10173583
Resources & Corporate Governance,Handy man,WHM00,External Contractor & Operator,0742,697.50,Ford Tucker,148036,13/09/2012,10173239
Resources & Corporate Governance,Handy man,WHM00,External Contractor & Operator,0742,615.00,Ford Tucker,148036,20/09/2012,10173599
Resources & Corporate Governance,Handy man,WHM00,External Contractor & Operator,0742,566.25,Ford Tucker,148036,27/09/2012,10173819
Economy Development & Culture,Ken Marriott Leisure Centre,KML00,Other,0763,6529.70,Leonie Cowen & Associates,148057,06/09/2012,10172630
Economy Development & Culture,Sports and Recreation,LSD03,Recruitment Expenses,0012,19.95,Team Prevent UK Ltd,148151,13/09/2012,10171084
Economy Development & Culture,Positive Futures,LSD04,Recruitment Expenses,0012,19.95,Team Prevent UK Ltd,148151,13/09/2012,10171084
Economy Development & Culture,Active Lifestyles,LSD08,Recruitment Expenses,0012,19.95,Team Prevent UK Ltd,148151,13/09/2012,10171084
Housing Revenue Account ,Property Maintenance,MAN23,Recruitment Expenses,0012,39.90,Team Prevent UK Ltd,148151,13/09/2012,10171084
Resources & Corporate Governance ,Financial Services,RES10,Recruitment Expenses,0012,19.95,Team Prevent UK Ltd,148151,13/09/2012,10171084
Economy Development & Culture,Visitor Centre,VSC00,Recruitment Expenses,0012,19.95,Team Prevent UK Ltd,148151,13/09/2012,10171084
Resources & Corporate Governance ,Grounds Maintenance,WGM00,Recruitment Expenses,0012,19.95,Team Prevent UK Ltd,148151,13/09/2012,10171084
Resources & Corporate Governance ,Caldecott Park Cafe,WGM02,Recruitment Expenses,0012,19.95,Team Prevent UK Ltd,148151,13/09/2012,10171084
Housing Revenue Account ,Sheltered Housing,AGP00,Employee wellbeing/Other employee expenses,0021,85.00,Team Prevent UK Ltd,148151,13/09/2012,10171084
Resources & Corporate Governance ,Support Services,CIS20,Employee wellbeing/Other employee expenses,0021,70.00,Team Prevent UK Ltd,148151,13/09/2012,10171084
Economy Development & Culture,Car Parks General,CPK01,Employee wellbeing/Other employee expenses,0021,42.50,Team Prevent UK Ltd,148151,13/09/2012,10171084
Economy Development & Culture,Decrim. of Car Parking on street parking,DPE02,Employee wellbeing/Other employee expenses,0021,170.00,Team Prevent UK Ltd,148151,13/09/2012,10171084
Sustainable Inclusive Communities,Housing Benefit Administration,HBA00,Employee wellbeing/Other employee expenses,0021,85.00,Team Prevent UK Ltd,148151,13/09/2012,10171084
Sustainable Inclusive Communities,Housing Options Team,HOT00,Employee wellbeing/Other employee expenses,0021,85.00,Team Prevent UK Ltd,148151,13/09/2012,10171084
Housing Revenue Account ,Property Maintenance,MAN23,Employee wellbeing/Other employee expenses,0021,255.00,Team Prevent UK Ltd,148151,13/09/2012,10171084
Economy Development & Culture,Planning Control,PLN01,Employee wellbeing/Other employee expenses,0021,80.00,Team Prevent UK Ltd,148151,13/09/2012,10171084
Resources & Corporate Governance ,Grounds Maintenance,WGM00,Employee wellbeing/Other employee expenses,0021,52.50,Team Prevent UK Ltd,148151,13/09/2012,10171084
Resources & Corporate Governance ,Domestic Waste Collection,WWC00,Employee wellbeing/Other employee expenses,0021,459.92,Team Prevent UK Ltd,148151,13/09/2012,10171084
Resources & Corporate Governance ,Support Services,CIS20,Recruitment Expenses,0012,19.95,Team Prevent UK Ltd,148151,13/09/2012,10172558
Resources & Corporate Governance,Apprenticeship Scheme,CSS25,Recruitment Expenses,0012,59.85,Team Prevent UK Ltd,148151,13/09/2012,10172558
Sustainable Environment,Regulatory Services,REG00,Recruitment Expenses,0012,19.95,Team Prevent UK Ltd,148151,13/09/2012,10172558
Resources & Corporate Governance ,General Administration,WAD00,Recruitment Expenses,0012,19.95,Team Prevent UK Ltd,148151,13/09/2012,10172558
Resources & Corporate Governance ,Grounds Maintenance,WGM00,Recruitment Expenses,0012,54.95,Team Prevent UK Ltd,148151,13/09/2012,10172558
Resources & Corporate Governance,Handy man,WHM00,Recruitment Expenses,0012,19.95,Team Prevent UK Ltd,148151,13/09/2012,10172558
Housing Revenue Account ,Control Centre (HRA),CCE00,Employee wellbeing/Other employee expenses,0021,120.00,Team Prevent UK Ltd,148151,13/09/2012,10172558
Economy Development & Culture,Car Parks General,CPK01,Employee wellbeing/Other employee expenses,0021,64.50,Team Prevent UK Ltd,148151,13/09/2012,10172558
Resources & Corporate Governance,Customer Support Services,CSS00,Employee wellbeing/Other employee expenses,0021,440.00,Team Prevent UK Ltd,148151,13/09/2012,10172558
Economy Development & Culture,Decrim. of Car Parking on street parking,DPE02,Employee wellbeing/Other employee expenses,0021,258.00,Team Prevent UK Ltd,148151,13/09/2012,10172558
Economy Development & Culture,Planning Control,PLN01,Employee wellbeing/Other employee expenses,0021,40.00,Team Prevent UK Ltd,148151,13/09/2012,10172558
Resources & Corporate Governance ,Toilet Cleaning,WBC01,Employee wellbeing/Other employee expenses,0021,40.00,Team Prevent UK Ltd,148151,13/09/2012,10172558
Resources & Corporate Governance ,Grounds Maintenance,WGM00,Employee wellbeing/Other employee expenses,0021,195.00,Team Prevent UK Ltd,148151,13/09/2012,10172558
Sustainable Inclusive Communities,Housing Strategy & Enabling,HSE00,Recruitment Expenses,0012,19.95,Team Prevent UK Ltd,148151,27/09/2012,10173699
Economy Development & Culture,Positive Futures,LSD04,Recruitment Expenses,0012,19.95,Team Prevent UK Ltd,148151,27/09/2012,10173699
Sustainable Environment,Regulatory Services,REG00,Recruitment Expenses,0012,37.45,Team Prevent UK Ltd,148151,27/09/2012,10173699
Resources & Corporate Governance ,Caldecott Park Cafe,WGM02,Recruitment Expenses,0012,19.95,Team Prevent UK Ltd,148151,27/09/2012,10173699
Housing Revenue Account ,Sheltered Housing,AGP00,Employee wellbeing/Other employee expenses,0021,85.00,Team Prevent UK Ltd,148151,27/09/2012,10173699
Housing Revenue Account ,Control Centre (HRA),CCE00,Employee wellbeing/Other employee expenses,0021,65.25,Team Prevent UK Ltd,148151,27/09/2012,10173699
Economy Development & Culture,Car Parks General,CPK01,Employee wellbeing/Other employee expenses,0021,31.20,Team Prevent UK Ltd,148151,27/09/2012,10173699
Resources & Corporate Governance,Customer Support Services,CSS00,Employee wellbeing/Other employee expenses,0021,120.00,Team Prevent UK Ltd,148151,27/09/2012,10173699
Resources & Corporate Governance,Business Support Services,CSS10,Employee wellbeing/Other employee expenses,0021,85.00,Team Prevent UK Ltd,148151,27/09/2012,10173699
Economy Development & Culture,Decrim. of Car Parking on street parking,DPE02,Employee wellbeing/Other employee expenses,0021,124.80,Team Prevent UK Ltd,148151,27/09/2012,10173699
Housing Revenue Account ,Property Maintenance,MAN23,Employee wellbeing/Other employee expenses,0021,97.50,Team Prevent UK Ltd,148151,27/09/2012,10173699
Resources & Corporate Governance ,Grounds Maintenance,WGM00,Employee wellbeing/Other employee expenses,0021,200.00,Team Prevent UK Ltd,148151,27/09/2012,10173699
Resources & Corporate Governance ,Domestic Waste Collection,WWC00,Employee wellbeing/Other employee expenses,0021,206.50,Team Prevent UK Ltd,148151,27/09/2012,10173699
Capital Program ,Corporate Property Enhancements,CPE00,Capital Contract Payments,5000,4455.00,The Engineering Practice Ltd,148180,27/09/2012,10173056
Sustainable Inclusive Communities,CL Grants,CGS00,Grants To Voluntary Organisations,0720,5000.00,Folly,148194,20/09/2012,10173630
Economy Development & Culture,Ken Marriott Leisure Centre,KML00,Other,0763,3450.00,Strategic Leisure,148196,13/09/2012,10173046
Capital Program ,Great Central Walk Bridge,LEI14,Capital Contract Payments,5000,504.00,Midshires Scaffolding Co Ltd,148219,13/09/2012,10173096
Sustainable Environment ,Violence,CAD01,Development Activities,0450,6929.00,Home Group Ltd (Stonham),148259,06/09/2012,10171214
Resources & Corporate Governance ,Customer and Information Strategy,CIS10,New Equipment,0300,909.38,Probrand Limited,148276,06/09/2012,10172723
Resources & Corporate Governance ,Customer and Information Strategy,CIS10,Postage & Distribution,0370,25.00,Probrand Limited,148276,06/09/2012,10172723
Resources & Corporate Governance ,Corporate Assurance,BTR40,Other Miscellaneous Expenses,0444,500.00,Reactec Ltd,148291,20/09/2012,10173196
Resources & Corporate Governance,Handy man,WHM00,External Contractor & Operator,0742,630.00,J P Building Services,148337,13/09/2012,10173231
Resources & Corporate Governance,Handy man,WHM00,External Contractor & Operator,0742,630.00,J P Building Services,148337,20/09/2012,10173370
Resources & Corporate Governance,Handy man,WHM00,External Contractor & Operator,0742,600.00,J P Building Services,148337,20/09/2012,10173611
Sustainable Environment ,Street Scene,ENV30,R&M External Contractors,0100,500.00,EA Ltd,148356,13/09/2012,10173059
Housing Revenue Account ,Supervision and Management General,MAN00,Movement Incentives,0454,500.00,REDACTED PERSONAL DATA,148416,20/09/2012,10173442
Housing Revenue Account ,Supervision and Management General,MAN00,R&M External Contractors,0100,600.00,Perfect Flow Solutions Ltd,148417,20/09/2012,10173461
Economy Development & Culture,Gypsy and Traveller Enforcement,PLN10,External Legal Costs,0741,600.00,Thea Osmund-Smith,148435,27/09/2012,10173658
,Balance Sheet,BS,Contributions To NNDR Pool,9476,1802083.00,Department for Communities & Local Govt,,04/09/2012,
,Balance Sheet,BS,Contributions To NNDR Pool,9476,1802082.00,Department for Communities & Local Govt,,19/09/2012,
Resources & Corporate Governance,General Financial Services,GFS00,Payment Card Costs,0444,785.37,Capita,,26/09/2012,
